[Event "January 9 Early 2024"]
[Site "https://www.chess.com"]
[Date "2024.01.11"]
[Round "7"]
[White "Matthes, Aaron"]
[Black "Carnicelli, Valerio"]
[Result "1-0"]
[Board "173"]
[TimeControl "180+1"]
[WhiteFideId "16227310"]
[BlackFideId "856185"]
[WhiteElo "2410"]
[BlackElo "2551"]
[WhiteTeam "GER"]
[BlackTeam "ITA"]
[WhiteClock "0:00:21"]
[BlackClock "0:00:04"]

1. Nf3 {[%clk 0:02:55]}  Nf6 {[%clk 0:02:59]} 2. g3 {[%clk 0:02:55]}  d5 {[%clk 0:02:59]} 3. d4 {[%clk 0:02:55]}  e6 {[%clk 0:02:59]} 4. Bg2 {[%clk 0:02:55]}  c5 {[%clk 0:02:59]} 5. O-O {[%clk 0:02:50]}  Nc6 {[%clk 0:02:58]} 6. c3 {[%clk 0:02:34]}  Be7 {[%clk 0:02:57]} 7. Bf4 {[%clk 0:02:34]}  O-O {[%clk 0:02:57]} 8. Nbd2 {[%clk 0:02:32]}  b6 {[%clk 0:02:57]} 9. Ne5 {[%clk 0:02:32]}  Bb7 {[%clk 0:02:57]} 10. Ndf3 {[%clk 0:02:29]}  Rc8 {[%clk 0:02:53]} 11. a3 {[%clk 0:02:24]}  c4 {[%clk 0:02:42]} 12. Nxc6 {[%clk 0:02:19]}  Bxc6 {[%clk 0:02:42]} 13. Bg5 {[%clk 0:02:19]}  Qe8 {[%clk 0:02:16]} 14. Nd2 {[%clk 0:02:14]}  Ba4 {[%clk 0:02:14]} 15. Qc1 {[%clk 0:02:12]}  h6 {[%clk 0:02:13]} 16. Bxf6 {[%clk 0:02:10]}  Bxf6 {[%clk 0:02:14]} 17. e4 {[%clk 0:02:10]}  dxe4 {[%clk 0:02:09]} 18. Nxe4 {[%clk 0:02:09]}  Be7 {[%clk 0:02:10]} 19. Re1 {[%clk 0:02:08]}  Qd7 {[%clk 0:02:05]} 20. h4 {[%clk 0:02:06]}  Rfd8 {[%clk 0:02:05]} 21. Nd2 {[%clk 0:01:57]}  a5 {[%clk 0:01:58]} 22. Nf3 {[%clk 0:01:52]}  Bf6 {[%clk 0:01:53]} 23. Ne5 {[%clk 0:01:51]}  Qe7 {[%clk 0:01:43]} 24. Qf4 {[%clk 0:01:47]}  Qd6 {[%clk 0:01:33]} 25. Re2 {[%clk 0:01:40]}  b5 {[%clk 0:01:27]} 26. Qg4 {[%clk 0:01:30]}  Bb3 {[%clk 0:01:13]} 27. Qh5 {[%clk 0:01:27]}  Rc7 {[%clk 0:01:03]} 28. Ng4 {[%clk 0:01:17]}  Bxd4 {[%clk 0:00:48]} 29. cxd4 {[%clk 0:01:11]}  Qxd4 {[%clk 0:00:49]} 30. Ne3 {[%clk 0:00:52]}  Rc5 {[%clk 0:00:38]} 31. Qg4 {[%clk 0:00:44]}  Qxg4 {[%clk 0:00:37]} 32. Nxg4 {[%clk 0:00:45]}  Bd1 {[%clk 0:00:37]} 33. Re5 {[%clk 0:00:38]}  Rxe5 {[%clk 0:00:27]} 34. Nxe5 {[%clk 0:00:39]}  Rd2 {[%clk 0:00:22]} 35. Rb1 {[%clk 0:00:33]}  Bc2 {[%clk 0:00:19]} 36. Nf3 {[%clk 0:00:33]}  Rxf2 {[%clk 0:00:11]} 37. Kxf2 {[%clk 0:00:32]}  Bxb1 {[%clk 0:00:12]} 38. Nd2 {[%clk 0:00:29]}  Bd3 {[%clk 0:00:06]} 39. Ke3 {[%clk 0:00:27]}  Bg6 {[%clk 0:00:03]} 40. Bc6 {[%clk 0:00:25]}  b4 {[%clk 0:00:03]} 41. Nxc4 {[%clk 0:00:25]}  bxa3 {[%clk 0:00:02]} 42. bxa3 {[%clk 0:00:26]}  a4 {[%clk 0:00:02]} 43. Bxa4 {[%clk 0:00:25]}  Kf8 {[%clk 0:00:03]} 44. Bc6 {[%clk 0:00:22]}  Ke7 {[%clk 0:00:03]} 45. Be4 {[%clk 0:00:22]}  Bh5 {[%clk 0:00:03]} 46. Bf3 {[%clk 0:00:21]}  Bg6 {[%clk 0:00:03]} 47. a4 {[%clk 0:00:21]}  f6 {[%clk 0:00:04]} 48. a5 {[%clk 0:00:21]} 1-0

[Event "January 9 Early 2024"]
[Site "https://www.chess.com"]
[Date "2024.01.11"]
[Round "7"]
[White "Limontaite, Simona"]
[Black "Ronka, Erik"]
[Result "0-1"]
[Board "175"]
[TimeControl "180+1"]
[WhiteFideId "12802506"]
[BlackFideId "505080"]
[WhiteElo "2314"]
[BlackElo "2520"]
[WhiteTeam "LTU"]
[BlackTeam "FIN"]
[WhiteClock "0:00:01"]
[BlackClock "0:00:09"]

1. d4 {[%clk 0:02:57]}  d5 {[%clk 0:02:56]} 2. c4 {[%clk 0:02:56]}  c6 {[%clk 0:02:56]} 3. Nc3 {[%clk 0:02:56]}  Nf6 {[%clk 0:02:56]} 4. e3 {[%clk 0:02:55]}  e6 {[%clk 0:02:55]} 5. Nf3 {[%clk 0:02:52]}  Nbd7 {[%clk 0:02:55]} 6. Bd3 {[%clk 0:02:42]}  dxc4 {[%clk 0:02:55]} 7. Bxc4 {[%clk 0:02:43]}  b5 {[%clk 0:02:55]} 8. Bd3 {[%clk 0:02:43]}  Bb7 {[%clk 0:02:56]} 9. e4 {[%clk 0:02:42]}  b4 {[%clk 0:02:55]} 10. Na4 {[%clk 0:02:42]}  c5 {[%clk 0:02:55]} 11. e5 {[%clk 0:02:43]}  Nd5 {[%clk 0:02:55]} 12. Nxc5 {[%clk 0:02:41]}  Nxc5 {[%clk 0:02:53]} 13. dxc5 {[%clk 0:02:42]}  Bxc5 {[%clk 0:02:54]} 14. O-O {[%clk 0:02:38]}  h6 {[%clk 0:02:52]} 15. Bb5+ {[%clk 0:02:04]}  Kf8 {[%clk 0:02:52]} 16. Qe2 {[%clk 0:01:58]}  g6 {[%clk 0:02:39]} 17. Qc4 {[%clk 0:01:09]}  Qb6 {[%clk 0:02:31]} 18. a4 {[%clk 0:00:49]}  a6 {[%clk 0:02:05]} 19. a5 {[%clk 0:00:43]}  Qxb5 {[%clk 0:01:57]} 20. Qh4 {[%clk 0:00:42]}  Kg7 {[%clk 0:01:49]} 21. h3 {[%clk 0:00:37]}  Be7 {[%clk 0:01:33]} 22. Qg3 {[%clk 0:00:29]}  Rac8 {[%clk 0:01:06]} 23. Nd4 {[%clk 0:00:26]}  Qd7 {[%clk 0:01:01]} 24. Rd1 {[%clk 0:00:24]}  Qc7 {[%clk 0:00:45]} 25. h4 {[%clk 0:00:17]}  h5 {[%clk 0:00:39]} 26. Bg5 {[%clk 0:00:16]}  Bxg5 {[%clk 0:00:37]} 27. Qxg5 {[%clk 0:00:17]}  Qe7 {[%clk 0:00:36]} 28. Qg3 {[%clk 0:00:17]}  Rhd8 {[%clk 0:00:34]} 29. Rd3 {[%clk 0:00:16]}  b3 {[%clk 0:00:32]} 30. Rad1 {[%clk 0:00:16]}  Nb4 {[%clk 0:00:32]} 31. Rxb3 {[%clk 0:00:16]}  Nc2 {[%clk 0:00:26]} 32. Rbd3 {[%clk 0:00:08]}  Nxd4 {[%clk 0:00:26]} 33. Rxd4 {[%clk 0:00:09]}  Rxd4 {[%clk 0:00:27]} 34. Rxd4 {[%clk 0:00:10]}  Rd8 {[%clk 0:00:25]} 35. Rf4 {[%clk 0:00:09]}  Rd5 {[%clk 0:00:21]} 36. b4 {[%clk 0:00:08]}  Qd7 {[%clk 0:00:14]} 37. Kh2 {[%clk 0:00:03]}  Rd4 {[%clk 0:00:13]} 38. Rf3 {[%clk 0:00:02]}  Rxb4 {[%clk 0:00:11]} 39. Qg5 {[%clk 0:00:01]}  Rg4 {[%clk 0:00:10]} 40. Qf6+ {[%clk 0:00:01]}  Kg8 {[%clk 0:00:11]} 41. Rc3 {[%clk 0:00:01]}  Rxg2+ {[%clk 0:00:10]} 42. Kh3 {[%clk 0:00:01]}  Rg4 {[%clk 0:00:09]} 0-1

[Event "January 9 Early 2024"]
[Site "https://www.chess.com"]
[Date "2024.01.11"]
[Round "7"]
[White "Srihari L R"]
[Black "Kazakouski, Valery"]
[Result "0-1"]
[Board "177"]
[TimeControl "180+1"]
[WhiteFideId "46617116"]
[BlackFideId "13507443"]
[WhiteElo "2674"]
[BlackElo "2833"]
[WhiteTeam "IND"]
[BlackTeam "LTU"]
[WhiteClock "0:00:03"]
[BlackClock "0:00:44"]

1. d4 {[%clk 0:03:00]}  Nf6 {[%clk 0:02:59]} 2. Bg5 {[%clk 0:03:00]}  e6 {[%clk 0:02:59]} 3. Nd2 {[%clk 0:02:59]}  h6 {[%clk 0:02:59]} 4. Bh4 {[%clk 0:02:57]}  c5 {[%clk 0:02:59]} 5. e3 {[%clk 0:02:57]}  cxd4 {[%clk 0:02:58]} 6. exd4 {[%clk 0:02:57]}  Be7 {[%clk 0:02:59]} 7. c3 {[%clk 0:02:55]}  O-O {[%clk 0:02:58]} 8. Bd3 {[%clk 0:02:53]}  b6 {[%clk 0:02:58]} 9. Ngf3 {[%clk 0:02:53]}  Ba6 {[%clk 0:02:58]} 10. Bxa6 {[%clk 0:02:50]}  Nxa6 {[%clk 0:02:59]} 11. Qe2 {[%clk 0:02:48]}  Nc7 {[%clk 0:02:59]} 12. O-O {[%clk 0:02:48]}  d6 {[%clk 0:03:00]} 13. a4 {[%clk 0:02:47]}  Qd7 {[%clk 0:03:00]} 14. Rfe1 {[%clk 0:02:46]}  Rfc8 {[%clk 0:02:59]} 15. a5 {[%clk 0:02:41]}  b5 {[%clk 0:02:59]} 16. Rad1 {[%clk 0:02:33]}  a6 {[%clk 0:02:57]} 17. Bg3 {[%clk 0:02:22]}  Ncd5 {[%clk 0:02:56]} 18. Nf1 {[%clk 0:02:18]}  Rc6 {[%clk 0:02:51]} 19. Ne3 {[%clk 0:02:18]}  Rac8 {[%clk 0:02:51]} 20. Nd2 {[%clk 0:02:17]}  Nxe3 {[%clk 0:02:42]} 21. fxe3 {[%clk 0:02:15]}  d5 {[%clk 0:02:43]} 22. Rc1 {[%clk 0:02:09]}  Bd8 {[%clk 0:02:33]} 23. Nb3 {[%clk 0:02:08]}  Ne4 {[%clk 0:02:33]} 24. Bf4 {[%clk 0:02:04]}  Be7 {[%clk 0:02:33]} 25. Nd2 {[%clk 0:02:02]}  Nxd2 {[%clk 0:02:21]} 26. Qxd2 {[%clk 0:02:02]}  b4 {[%clk 0:02:22]} 27. e4 {[%clk 0:01:52]}  bxc3 {[%clk 0:02:16]} 28. bxc3 {[%clk 0:01:51]}  dxe4 {[%clk 0:02:15]} 29. Rxe4 {[%clk 0:01:51]}  Qd5 {[%clk 0:02:14]} 30. Re5 {[%clk 0:01:47]}  Qb3 {[%clk 0:02:13]} 31. Re3 {[%clk 0:01:29]}  Ba3 {[%clk 0:01:55]} 32. Rc2 {[%clk 0:01:21]}  Bb4 {[%clk 0:01:39]} 33. d5 {[%clk 0:01:07]}  Qxd5 {[%clk 0:01:37]} 34. Rd3 {[%clk 0:01:03]}  Qf5 {[%clk 0:01:32]} 35. Rg3 {[%clk 0:00:20]}  Kh7 {[%clk 0:01:18]} 36. Rf3 {[%clk 0:00:12]}  Bc5+ {[%clk 0:00:58]} 37. Be3 {[%clk 0:00:11]}  Bxe3+ {[%clk 0:00:57]} 38. Rxe3 {[%clk 0:00:11]}  Qxa5 {[%clk 0:00:54]} 39. Qd3+ {[%clk 0:00:11]}  Qf5 {[%clk 0:00:54]} 40. Qxf5+ {[%clk 0:00:10]}  exf5 {[%clk 0:00:55]} 41. Ra2 {[%clk 0:00:09]}  Rxc3 {[%clk 0:00:53]} 42. Rxc3 {[%clk 0:00:07]}  Rxc3 {[%clk 0:00:54]} 43. Rxa6 {[%clk 0:00:07]}  f4 {[%clk 0:00:54]} 44. Kf2 {[%clk 0:00:07]}  g5 {[%clk 0:00:53]} 45. h3 {[%clk 0:00:07]}  Kg7 {[%clk 0:00:52]} 46. Ra5 {[%clk 0:00:07]}  f6 {[%clk 0:00:52]} 47. Ra8 {[%clk 0:00:03]}  h5 {[%clk 0:00:52]} 48. Ra7+ {[%clk 0:00:02]}  Kg6 {[%clk 0:00:52]} 49. Ra8 {[%clk 0:00:03]}  Rc2+ {[%clk 0:00:52]} 50. Kf3 {[%clk 0:00:03]}  Rc3+ {[%clk 0:00:52]} 51. Kf2 {[%clk 0:00:04]}  g4 {[%clk 0:00:52]} 52. hxg4 {[%clk 0:00:04]}  hxg4 {[%clk 0:00:53]} 53. Rg8+ {[%clk 0:00:05]}  Kf5 {[%clk 0:00:53]} 54. Ra8 {[%clk 0:00:05]}  Rc2+ {[%clk 0:00:53]} 55. Kf1 {[%clk 0:00:05]}  Kg5 {[%clk 0:00:47]} 56. Rg8+ {[%clk 0:00:03]}  Kh4 {[%clk 0:00:47]} 57. Rf8 {[%clk 0:00:03]}  Kg3 {[%clk 0:00:44]} 0-1

[Event "January 9 Early 2024"]
[Site "https://www.chess.com"]
[Date "2024.01.11"]
[Round "7"]
[White "Tarhan, Adar"]
[Black "Krishnan, Ritvik"]
[Result "1-0"]
[Board "179"]
[TimeControl "180+1"]
[WhiteFideId "34544712"]
[BlackFideId "45055297"]
[WhiteElo "2693"]
[BlackElo "2506"]
[WhiteTeam "TUR"]
[BlackTeam "IND"]
[WhiteClock "0:00:09"]
[BlackClock "0:00:03"]

1. e4 {[%clk 0:03:00]}  c5 {[%clk 0:02:58]} 2. Nf3 {[%clk 0:03:01]}  d6 {[%clk 0:02:58]} 3. Bb5+ {[%clk 0:03:00]}  Nd7 {[%clk 0:02:55]} 4. O-O {[%clk 0:02:58]}  Nf6 {[%clk 0:02:54]} 5. Re1 {[%clk 0:02:59]}  a6 {[%clk 0:02:53]} 6. Bf1 {[%clk 0:02:58]}  e5 {[%clk 0:02:45]} 7. c3 {[%clk 0:02:57]}  Be7 {[%clk 0:02:40]} 8. d4 {[%clk 0:02:57]}  O-O {[%clk 0:02:41]} 9. a4 {[%clk 0:02:55]}  b6 {[%clk 0:02:39]} 10. Bd3 {[%clk 0:02:40]}  cxd4 {[%clk 0:02:32]} 11. cxd4 {[%clk 0:02:41]}  exd4 {[%clk 0:02:33]} 12. Nxd4 {[%clk 0:02:42]}  Nc5 {[%clk 0:02:31]} 13. Bc2 {[%clk 0:02:35]}  Bb7 {[%clk 0:02:30]} 14. Nc3 {[%clk 0:02:35]}  Re8 {[%clk 0:02:29]} 15. Nf5 {[%clk 0:02:30]}  Bf8 {[%clk 0:02:29]} 16. Bg5 {[%clk 0:02:29]}  h6 {[%clk 0:02:23]} 17. Bh4 {[%clk 0:02:17]}  g6 {[%clk 0:02:23]} 18. Qd4 {[%clk 0:02:11]}  Re6 {[%clk 0:01:54]} 19. b4 {[%clk 0:01:54]}  Ncd7 {[%clk 0:01:40]} 20. Ne3 {[%clk 0:01:04]}  Ne5 {[%clk 0:00:20]} 21. Bb3 {[%clk 0:01:01]}  Re8 {[%clk 0:00:20]} 22. Ncd5 {[%clk 0:00:57]}  g5 {[%clk 0:00:20]} 23. Bg3 {[%clk 0:00:55]}  b5 {[%clk 0:00:19]} 24. axb5 {[%clk 0:00:53]}  axb5 {[%clk 0:00:20]} 25. Rxa8 {[%clk 0:00:53]}  Bxa8 {[%clk 0:00:19]} 26. Nf5 {[%clk 0:00:47]}  Nxd5 {[%clk 0:00:17]} 27. Bxd5 {[%clk 0:00:48]}  Bxd5 {[%clk 0:00:14]} 28. Qxd5 {[%clk 0:00:49]}  Qf6 {[%clk 0:00:15]} 29. Qxb5 {[%clk 0:00:46]}  Rc8 {[%clk 0:00:11]} 30. Qd5 {[%clk 0:00:43]}  h5 {[%clk 0:00:11]} 31. h4 {[%clk 0:00:42]}  g4 {[%clk 0:00:09]} 32. b5 {[%clk 0:00:41]}  Rc5 {[%clk 0:00:08]} 33. Qb3 {[%clk 0:00:35]}  Rc3 {[%clk 0:00:04]} 34. Qb1 {[%clk 0:00:26]}  Nd3 {[%clk 0:00:04]} 35. Rd1 {[%clk 0:00:24]}  Nc5 {[%clk 0:00:03]} 36. Nd4 {[%clk 0:00:16]}  Nb7 {[%clk 0:00:01]} 37. b6 {[%clk 0:00:16]}  Bg7 {[%clk 0:00:02]} 38. Nf5 {[%clk 0:00:15]}  Qe6 {[%clk 0:00:02]} 39. Nxg7 {[%clk 0:00:08]}  Kxg7 {[%clk 0:00:03]} 40. Qa1 {[%clk 0:00:09]}  Qf6 {[%clk 0:00:03]} 41. e5 {[%clk 0:00:09]} 1-0

[Event "January 9 Early 2024"]
[Site "https://www.chess.com"]
[Date "2024.01.11"]
[Round "7"]
[White "Sychev, Klementy"]
[Black "Santos Flores, Alberto"]
[Result "1-0"]
[Board "180"]
[TimeControl "180+1"]
[WhiteFideId "4114060"]
[BlackFideId "3601234"]
[WhiteElo "2789"]
[BlackElo "2503"]
[WhiteTeam "FID"]
[BlackTeam "ECU"]
[WhiteClock "0:00:18"]
[BlackClock "0:00:02"]

1. e4 {[%clk 0:03:00]}  e6 {[%clk 0:03:00]} 2. Qe2 {[%clk 0:02:54]}  c5 {[%clk 0:02:59]} 3. b3 {[%clk 0:02:55]}  Nc6 {[%clk 0:02:56]} 4. Bb2 {[%clk 0:02:55]}  Nf6 {[%clk 0:02:54]} 5. Nf3 {[%clk 0:02:52]}  Be7 {[%clk 0:02:51]} 6. e5 {[%clk 0:02:47]}  Nd5 {[%clk 0:02:51]} 7. Nc3 {[%clk 0:02:48]}  Nxc3 {[%clk 0:02:50]} 8. dxc3 {[%clk 0:02:48]}  d5 {[%clk 0:02:43]} 9. exd6 {[%clk 0:02:48]}  Qxd6 {[%clk 0:02:43]} 10. Nd2 {[%clk 0:02:44]}  Qe5 {[%clk 0:02:32]} 11. O-O-O {[%clk 0:02:42]}  Qxe2 {[%clk 0:02:31]} 12. Bxe2 {[%clk 0:02:43]}  Bd7 {[%clk 0:02:21]} 13. c4 {[%clk 0:02:32]}  O-O-O {[%clk 0:02:07]} 14. Ne4 {[%clk 0:02:28]}  f5 {[%clk 0:02:01]} 15. Nd6+ {[%clk 0:02:26]}  Bxd6 {[%clk 0:01:52]} 16. Rxd6 {[%clk 0:02:27]}  Rhg8 {[%clk 0:01:52]} 17. Rhd1 {[%clk 0:02:24]}  g6 {[%clk 0:01:48]} 18. Bf6 {[%clk 0:02:05]}  Rdf8 {[%clk 0:01:48]} 19. Rxd7 {[%clk 0:02:05]}  Rxf6 {[%clk 0:01:39]} 20. Rxh7 {[%clk 0:02:05]}  Nd4 {[%clk 0:01:34]} 21. Bf1 {[%clk 0:02:05]}  Rd8 {[%clk 0:01:27]} 22. h4 {[%clk 0:01:59]}  Rff8 {[%clk 0:01:13]} 23. c3 {[%clk 0:01:52]}  Nc6 {[%clk 0:01:12]} 24. Rxd8+ {[%clk 0:01:53]}  Rxd8 {[%clk 0:01:04]} 25. Rg7 {[%clk 0:01:46]}  Ne5 {[%clk 0:01:04]} 26. Be2 {[%clk 0:01:47]}  Rd7 {[%clk 0:00:58]} 27. Rg8+ {[%clk 0:01:44]}  Rd8 {[%clk 0:00:57]} 28. Rg7 {[%clk 0:01:38]}  Rd7 {[%clk 0:00:56]} 29. Rg8+ {[%clk 0:01:39]}  Rd8 {[%clk 0:00:56]} 30. Rxd8+ {[%clk 0:01:39]}  Kxd8 {[%clk 0:00:56]} 31. f4 {[%clk 0:01:38]}  Nf7 {[%clk 0:00:52]} 32. Bf3 {[%clk 0:01:25]}  b6 {[%clk 0:00:50]} 33. Kd2 {[%clk 0:01:20]}  Kc7 {[%clk 0:00:50]} 34. b4 {[%clk 0:01:20]}  Kd6 {[%clk 0:00:43]} 35. Kc2 {[%clk 0:01:18]}  e5 {[%clk 0:00:19]} 36. Bd5 {[%clk 0:01:07]}  Nh6 {[%clk 0:00:19]} 37. bxc5+ {[%clk 0:00:58]}  bxc5 {[%clk 0:00:17]} 38. fxe5+ {[%clk 0:00:59]}  Kxe5 {[%clk 0:00:18]} 39. Kb3 {[%clk 0:00:59]}  Ng4 {[%clk 0:00:16]} 40. Ka4 {[%clk 0:00:55]}  Ne3 {[%clk 0:00:15]} 41. Bf3 {[%clk 0:00:28]}  Kd6 {[%clk 0:00:09]} 42. Kb5 {[%clk 0:00:27]}  f4 {[%clk 0:00:09]} 43. a4 {[%clk 0:00:25]}  Nc2 {[%clk 0:00:05]} 44. Ka6 {[%clk 0:00:20]}  Ne3 {[%clk 0:00:05]} 45. Kxa7 {[%clk 0:00:19]}  Nxc4 {[%clk 0:00:05]} 46. Ka6 {[%clk 0:00:20]}  Ne5 {[%clk 0:00:04]} 47. Kb5 {[%clk 0:00:18]}  Nd7 {[%clk 0:00:02]} 48. a5 {[%clk 0:00:18]} 1-0

[Event "January 9 Early 2024"]
[Site "https://www.chess.com"]
[Date "2024.01.11"]
[Round "7"]
[White "Kiselev, Pavel"]
[Black "Pinero Rodriguez, Carlos Jose"]
[Result "0-1"]
[Board "181"]
[TimeControl "180+1"]
[WhiteFideId "4191102"]
[BlackFideId "3901726"]
[WhiteElo "2376"]
[BlackElo "2566"]
[WhiteTeam "RUS"]
[BlackTeam "VEN"]
[WhiteClock "0:00:03"]
[BlackClock "0:00:39"]

1. Nf3 {[%clk 0:03:00]}  Nf6 {[%clk 0:02:58]} 2. g3 {[%clk 0:02:58]}  g6 {[%clk 0:02:58]} 3. Bg2 {[%clk 0:02:59]}  Bg7 {[%clk 0:02:59]} 4. O-O {[%clk 0:03:00]}  O-O {[%clk 0:03:00]} 5. d4 {[%clk 0:03:01]}  d6 {[%clk 0:03:00]} 6. c4 {[%clk 0:03:01]}  Nbd7 {[%clk 0:03:00]} 7. Nc3 {[%clk 0:03:01]}  e5 {[%clk 0:03:01]} 8. d5 {[%clk 0:03:01]}  a5 {[%clk 0:02:58]} 9. b3 {[%clk 0:02:56]}  Ne8 {[%clk 0:02:52]} 10. Bb2 {[%clk 0:02:55]}  h6 {[%clk 0:02:52]} 11. e4 {[%clk 0:02:54]}  f5 {[%clk 0:02:52]} 12. exf5 {[%clk 0:02:52]}  gxf5 {[%clk 0:02:52]} 13. Nd2 {[%clk 0:02:38]}  Nc5 {[%clk 0:02:51]} 14. Qe2 {[%clk 0:02:35]}  Nf6 {[%clk 0:02:48]} 15. Rfe1 {[%clk 0:02:31]}  Bd7 {[%clk 0:02:37]} 16. Rad1 {[%clk 0:02:25]}  Qe8 {[%clk 0:02:28]} 17. a3 {[%clk 0:02:23]}  Qg6 {[%clk 0:02:24]} 18. b4 {[%clk 0:02:18]}  Na6 {[%clk 0:02:23]} 19. Na2 {[%clk 0:01:45]}  b6 {[%clk 0:02:08]} 20. Bc3 {[%clk 0:01:23]}  axb4 {[%clk 0:02:00]} 21. axb4 {[%clk 0:01:24]}  h5 {[%clk 0:01:53]} 22. Nf3 {[%clk 0:01:08]}  Ne4 {[%clk 0:01:47]} 23. Nh4 {[%clk 0:01:02]}  Nxc3 {[%clk 0:01:46]} 24. Nxg6 {[%clk 0:00:57]}  Nxe2+ {[%clk 0:01:45]} 25. Rxe2 {[%clk 0:00:58]}  Rf7 {[%clk 0:01:45]} 26. f4 {[%clk 0:00:50]}  e4 {[%clk 0:01:44]} 27. h3 {[%clk 0:00:47]}  Kh7 {[%clk 0:01:42]} 28. Nh4 {[%clk 0:00:43]}  Bf6 {[%clk 0:01:42]} 29. Nxf5 {[%clk 0:00:30]}  Bxf5 {[%clk 0:01:41]} 30. Bxe4 {[%clk 0:00:31]}  Bxe4 {[%clk 0:01:34]} 31. Rxe4 {[%clk 0:00:31]}  Rg8 {[%clk 0:01:33]} 32. Kh2 {[%clk 0:00:30]}  Nb8 {[%clk 0:01:33]} 33. Rde1 {[%clk 0:00:29]}  Nd7 {[%clk 0:01:33]} 34. Re6 {[%clk 0:00:28]}  Bd4 {[%clk 0:01:22]} 35. R1e4 {[%clk 0:00:27]}  Bf2 {[%clk 0:01:18]} 36. Nc3 {[%clk 0:00:16]}  Bxg3+ {[%clk 0:01:18]} 37. Kh1 {[%clk 0:00:16]}  Nf6 {[%clk 0:01:13]} 38. Re2 {[%clk 0:00:12]}  Bxf4 {[%clk 0:01:11]} 39. Rf2 {[%clk 0:00:12]}  Be5 {[%clk 0:01:08]} 40. Ne4 {[%clk 0:00:11]}  Rg6 {[%clk 0:00:59]} 41. Rf5 {[%clk 0:00:05]}  Kg7 {[%clk 0:00:53]} 42. Ng5 {[%clk 0:00:05]}  Rd7 {[%clk 0:00:51]} 43. Nf3 {[%clk 0:00:05]}  Ne4 {[%clk 0:00:46]} 44. Nxe5 {[%clk 0:00:04]}  dxe5 {[%clk 0:00:36]} 45. Rexe5 {[%clk 0:00:05]}  Ng3+ {[%clk 0:00:37]} 46. Kh2 {[%clk 0:00:05]}  Nxf5 {[%clk 0:00:37]} 47. Rxf5 {[%clk 0:00:06]}  Rf7 {[%clk 0:00:38]} 48. Rxh5 {[%clk 0:00:05]}  Rf2+ {[%clk 0:00:38]} 49. Kh1 {[%clk 0:00:05]}  Rgg2 {[%clk 0:00:39]} 50. c5 {[%clk 0:00:05]}  bxc5 {[%clk 0:00:38]} 51. bxc5 {[%clk 0:00:06]}  Rc2 {[%clk 0:00:39]} 52. c6 {[%clk 0:00:05]}  Rgd2 {[%clk 0:00:39]} 53. Re5 {[%clk 0:00:03]}  Rd1+ {[%clk 0:00:39]} 0-1

[Event "January 9 Early 2024"]
[Site "https://www.chess.com"]
[Date "2024.01.11"]
[Round "7"]
[White "Terziev, Dimo"]
[Black "Leschinsky, Gary"]
[Result "0-1"]
[Board "182"]
[TimeControl "180+1"]
[WhiteFideId "2925397"]
[BlackFideId "30951321"]
[WhiteElo "2169"]
[BlackElo "2423"]
[WhiteTeam "BUL"]
[BlackTeam "USA"]
[WhiteClock "0:00:03"]
[BlackClock "0:00:09"]

1. e4 {[%clk 0:03:00]}  c5 {[%clk 0:02:17]} 2. Nf3 {[%clk 0:02:59]}  d6 {[%clk 0:02:17]} 3. d4 {[%clk 0:02:59]}  cxd4 {[%clk 0:02:18]} 4. Qxd4 {[%clk 0:03:00]}  Nf6 {[%clk 0:02:14]} 5. Be2 {[%clk 0:02:58]}  Nc6 {[%clk 0:02:11]} 6. Qe3 {[%clk 0:02:58]}  e5 {[%clk 0:02:11]} 7. c4 {[%clk 0:02:56]}  Be7 {[%clk 0:02:11]} 8. Nc3 {[%clk 0:02:56]}  O-O {[%clk 0:02:09]} 9. O-O {[%clk 0:02:55]}  Bg4 {[%clk 0:02:03]} 10. h3 {[%clk 0:02:53]}  Bxf3 {[%clk 0:02:00]} 11. Bxf3 {[%clk 0:02:51]}  Nd7 {[%clk 0:01:58]} 12. Nd5 {[%clk 0:02:47]}  Nd4 {[%clk 0:01:56]} 13. Bd1 {[%clk 0:02:41]}  Rc8 {[%clk 0:01:47]} 14. b3 {[%clk 0:02:40]}  h6 {[%clk 0:01:42]} 15. Bb2 {[%clk 0:02:39]}  Ne6 {[%clk 0:01:34]} 16. Bg4 {[%clk 0:02:35]}  Bg5 {[%clk 0:01:28]} 17. Qe2 {[%clk 0:02:24]}  Nf6 {[%clk 0:01:14]} 18. Bxe6 {[%clk 0:02:12]}  fxe6 {[%clk 0:01:04]} 19. Nxf6+ {[%clk 0:02:12]}  Qxf6 {[%clk 0:01:03]} 20. Rad1 {[%clk 0:02:12]}  Rcd8 {[%clk 0:01:04]} 21. Rd3 {[%clk 0:02:11]}  Qf7 {[%clk 0:00:59]} 22. Rfd1 {[%clk 0:02:07]}  Be7 {[%clk 0:01:00]} 23. Rf3 {[%clk 0:01:52]}  Qg6 {[%clk 0:00:55]} 24. Rg3 {[%clk 0:01:51]}  Qf7 {[%clk 0:00:52]} 25. Rgd3 {[%clk 0:01:43]}  Qe8 {[%clk 0:00:40]} 26. Ba3 {[%clk 0:01:41]}  Qc6 {[%clk 0:00:40]} 27. Qg4 {[%clk 0:01:35]}  Rf6 {[%clk 0:00:38]} 28. Bb2 {[%clk 0:01:32]}  Rdf8 {[%clk 0:00:36]} 29. R3d2 {[%clk 0:01:16]}  Kh7 {[%clk 0:00:28]} 30. Ba3 {[%clk 0:01:06]}  Rd8 {[%clk 0:00:22]} 31. c5 {[%clk 0:00:59]}  d5 {[%clk 0:00:21]} 32. exd5 {[%clk 0:00:50]}  exd5 {[%clk 0:00:22]} 33. b4 {[%clk 0:00:46]}  d4 {[%clk 0:00:20]} 34. Re1 {[%clk 0:00:40]}  Qd5 {[%clk 0:00:15]} 35. Qe4+ {[%clk 0:00:38]}  Qxe4 {[%clk 0:00:15]} 36. Rxe4 {[%clk 0:00:38]}  Rf5 {[%clk 0:00:12]} 37. Bb2 {[%clk 0:00:36]}  Bf6 {[%clk 0:00:13]} 38. a3 {[%clk 0:00:36]}  Kg8 {[%clk 0:00:14]} 39. Rd3 {[%clk 0:00:30]}  Kf7 {[%clk 0:00:13]} 40. g4 {[%clk 0:00:24]}  Rf4 {[%clk 0:00:13]} 41. f3 {[%clk 0:00:17]}  Ke6 {[%clk 0:00:12]} 42. Kg2 {[%clk 0:00:13]}  g5 {[%clk 0:00:10]} 43. Rxf4 {[%clk 0:00:11]}  exf4 {[%clk 0:00:09]} 44. Kf2 {[%clk 0:00:11]}  Kd5 {[%clk 0:00:10]} 45. Ke2 {[%clk 0:00:11]}  Re8+ {[%clk 0:00:10]} 46. Kd2 {[%clk 0:00:11]}  Re3 {[%clk 0:00:11]} 47. Kc2 {[%clk 0:00:03]}  Kc4 {[%clk 0:00:09]} 0-1